bitfinex-derivatives/quotes_BTCF0:USTF0_20210705
["timestamp","ask_amount","ask_price","bid_price","bid_amount"]
[1625513153685,4.88877544,34091.0,34090.0,6.28105539]
[1625513153784,4.88877544,34091.0,34090.0,6.34005539]
[1625513154285,4.88877544,34091.0,34090.0,6.21037995]
[1625513154385,4.6482,34091.0,34090.0,6.21037995]
[1625513154785,4.88877544,34091.0,34090.0,6.45095539]
[1625513156189,5.58322637,34091.0,34090.0,6.45095539]
[1625513157648,5.59916912,34091.0,34090.0,6.45095539]
[1625513157845,5.59916912,34091.0,34090.0,6.43960727]
[1625513158599,6.64069367,34091.0,34090.0,6.43960727]
[1625513161102,6.62475092,34091.0,34090.0,6.43960727]
[1625513161351,6.62475092,34091.0,34090.0,6.45101904]
[1625513161453,5.58322637,34091.0,34090.0,6.45101904]
[1625513163910,5.58322637,34091.0,34090.0,6.43960727]
[1625513164010,6.62275592,34091.0,34090.0,6.43960727]
[1625513164309,6.63870079,34091.0,34090.0,6.43960727]
[1625513165212,6.63870079,34091.0,34090.0,6.45102555]
[1625513165912,6.63870079,34091.0,34090.0,6.43960727]
[1625513167063,6.63870079,34091.0,34090.0,6.38060727]
[1625513167164,6.63870079,34091.0,34090.0,6.43960727]
[1625513167667,7.85092331,34091.0,34090.0,6.43960727]
[1625513167865,7.83497844,34091.0,34090.0,6.43613124]
[1625513168115,7.85093253,34091.0,34090.0,6.43960752]
[1625513168371,7.83497844,34091.0,34090.0,6.43960752]
[1625513168466,6.62275592,34091.0,34090.0,6.43960752]
[1625513168816,7.83501793,34091.0,34090.0,6.43960752]
[1625513169117,3.18681793,34091.0,34090.0,6.43960752]
[1625513169318,1.97455592,34091.0,34090.0,6.43960752]
[1625513169418,1.97455592,34091.0,34090.0,6.45102613]
[1625513169620,1.73398048,34091.0,34090.0,6.45102613]
[1625513170071,8.048e-05,34091.0,34090.0,6.45102613]
[1625513170268,1.38469652,34094.0,34090.0,6.45102613]
[1625513170370,1.38469652,34094.0,34091.0,0.0114117]
[1625513170469,1.0391934,34095.0,34091.0,0.0114117]
[1625513170620,1.0391934,34095.0,34091.0,0.13288741]
[1625513170719,1.0391934,34095.0,34092.0,0.057]
[1625513170821,1.0391934,34095.0,34092.0,0.13088693]
[1625513170923,1.0391934,34095.0,34094.0,0.24057544]
[1625513171021,0.24057544,34097.0,34094.0,4.92863266]
[1625513171120,0.24057544,34097.0,34094.0,5.11504262]
[1625513171272,0.24057544,34097.0,34094.0,5.11851817]
[1625513171471,0.24057544,34097.0,34095.0,0.01140938]
[1625513171571,0.24057544,34097.0,34095.0,0.07388487]
[1625513171674,0.24057544,34097.0,34096.0,5.21991765]
[1625513171774,0.24057544,34097.0,34096.0,5.27891765]
[1625513171874,0.24057544,34097.0,34096.0,5.34139314]
[1625513172827,0.24057544,34097.0,34096.0,3.59381431]
[1625513173126,0.75813238,34097.0,34096.0,3.59381431]
[1625513173928,0.84603238,34097.0,34096.0,3.53481431]
[1625513174427,0.75813238,34097.0,34096.0,3.53481431]
[1625513174576,0.75813238,34097.0,34096.0,3.47581431]
[1625513174829,0.75813238,34097.0,34096.0,1.91326184]
[1625513174927,0.75813238,34097.0,34096.0,1.97226184]
[1625513175127,0.75813238,34097.0,34096.0,3.53402031]
[1625513175529,0.75813238,34097.0,34096.0,3.47502031]
[1625513175629,0.75813238,34097.0,34096.0,3.53402031]
[1625513175829,0.75813238,34097.0,34096.0,3.59302031]
[1625513176731,0.75813238,34097.0,34096.0,3.53402031]
[1625513177283,0.84663238,34097.0,34096.0,3.53402031]
[1625513177383,0.84663238,34097.0,34096.0,3.59302031]
[1625513177483,0.84663238,34097.0,34096.0,3.53402031]
[1625513177584,0.75813238,34097.0,34096.0,3.53402031]
[1625513178635,0.75813238,34097.0,34096.0,3.59302031]
[1625513178886,0.75813238,34097.0,34096.0,3.83359575]
[1625513178986,0.75813238,34097.0,34096.0,3.77459575]
[1625513179436,0.84473238,34097.0,34096.0,3.83359575]
[1625513179736,0.84473238,34097.0,34096.0,3.77459575]
[1625513179937,0.75813238,34097.0,34096.0,3.77459575]
[1625513180290,0.75813238,34097.0,34096.0,3.83359575]
[1625513182508,0.75813238,34097.0,34096.0,3.84499526]
[1625513182708,0.51755694,34097.0,34096.0,3.84499526]
[1625513182903,0.51829956,34100.0,34096.0,3.84499526]
[1625513183003,0.51829956,34100.0,34097.0,0.057]
[1625513183207,0.51829956,34100.0,34098.0,0.01487454]
[1625513183304,0.51829956,34100.0,34099.0,3.46900536]
[1625513183505,0.51829956,34100.0,34099.0,3.47248107]
[1625513183604,0.51829956,34100.0,34099.0,3.59048107]
[1625513183817,1.38184432,34105.0,34099.0,3.59048107]
[1625513183928,1.38184432,34105.0,34099.0,3.64748107]
[1625513184014,1.38184432,34105.0,34100.0,0.01139666]
[1625513184115,1.38184432,34105.0,34100.0,0.07039666]
[1625513184205,1.38184432,34105.0,34100.0,0.12939666]
[1625513184306,1.38184432,34105.0,34101.0,0.06047541]
[1625513184406,0.51909536,34104.0,34102.0,0.26078777]
[1625513184509,0.51909536,34104.0,34102.0,0.31978777]
[1625513184605,0.51909536,34104.0,34102.0,0.36887534]
[1625513184806,1.383966,34109.0,34103.0,0.00347534]
[1625513184906,1.383966,34109.0,34107.0,4.5445]
[1625513185007,1.38335034,34111.0,34107.0,5.26622632]
[1625513185108,0.087,34109.0,34107.0,5.26622632]
[1625513185306,0.087,34109.0,34107.0,5.32522632]
[1625513185458,0.087,34109.0,34107.0,5.32870148]
[1625513185557,1.38335034,34111.0,34107.0,5.32870148]
[1625513185659,1.3839835,34112.0,34107.0,6.71500863]
[1625513186261,1.38417539,34113.0,34107.0,8.27454893]
[1625513186714,1.38325932,34115.0,34107.0,6.71500863]
[1625513186962,0.0884,34114.0,34107.0,6.71500863]
[1625513187062,1.38325932,34115.0,34107.0,6.71500863]
[1625513187313,1.38325932,34115.0,34107.0,6.71153347]
[1625513188620,1.38325932,34115.0,34107.0,6.7150083]
[1625513188822,1.38325932,34115.0,34107.0,6.7740083]
[1625513188920,5.932e-05,34115.0,34107.0,6.78536505]
[1625513189020,5.932e-05,34115.0,34108.0,0.057]
[1625513189121,5.932e-05,34115.0,34108.0,0.116]
[1625513189223,5.932e-05,34115.0,34108.0,0.175]
[1625513189422,5.932e-05,34115.0,34109.0,0.01482331]
[1625513189523,1.55730868,34124.0,34109.0,0.36290331]
[1625513189623,1.55730868,34124.0,34110.0,0.057]
[1625513189723,1.55730868,34124.0,34110.0,0.116]
[1625513189928,4.9318,34126.0,34112.0,1.5557079]
[1625513189929,1.79771051,34125.0,34112.0,1.5557079]
[1625513190024,1.79771051,34125.0,34113.0,0.057]
[1625513190125,1.79771051,34125.0,34113.0,0.116]
[1625513190325,1.21113334,34120.0,34117.0,1.2099584]
[1625513190425,1.21113334,34120.0,34117.0,1.5410084]
[1625513190727,1.20995772,34121.0,34117.0,0.33105]
[1625513190928,1.20995772,34121.0,34117.0,4.09495]
[1625513191026,1.20995772,34121.0,34120.0,0.72172632]
[1625513191127,1.20995772,34121.0,34120.0,0.78072632]
[1625513191229,1.20995314,34122.0,34120.0,0.78072632]
[1625513191735,1.20995314,34122.0,34120.0,0.83972632]
[1625513192229,0.24057544,34125.0,34120.0,0.83972632]
[1625513192230,1.20979285,34124.0,34120.0,0.83972632]
[1625513192630,1.44915765,34125.0,34120.0,0.83972632]
[1625513192980,1.44915765,34125.0,34124.0,0.24057544]
[1625513193081,1.44915765,34125.0,34124.0,0.29957544]
[1625513193382,1.20858221,34125.0,34124.0,0.53025544]
[1625513193482,1.20858221,34125.0,34124.0,0.58925544]
[1625513193783,0.74756324,34125.0,34124.0,0.58925544]
[1625513194184,1.55350987,34136.0,34124.0,0.58925544]
[1625513194289,1.55350987,34136.0,34125.0,0.057]
[1625513194385,1.55350987,34136.0,34125.0,0.116]
[1625513194584,1.55350987,34136.0,34125.0,0.175]
[1625513194866,0.50001164,34146.0,34125.0,0.175]
[1625513194867,2.49314631,34142.0,34135.0,3.8263]
[1625513194942,2.49314631,34142.0,34135.0,4.13296]
[1625513195036,0.24057544,34139.0,34136.0,0.24057544]
[1625513195243,0.24057544,34139.0,34136.0,0.29957544]
[1625513195337,0.24057544,34142.0,34136.0,0.29957544]
[1625513195735,1.55096407,34145.0,34136.0,0.29957544]
[1625513195844,1.55096407,34145.0,34136.0,0.35657544]
[1625513195988,2.08429592,34146.0,34136.0,0.35657544]
[1625513196288,1.79139592,34146.0,34136.0,0.35657544]
[1625513196488,0.24057544,34146.0,34136.0,0.41557544]
[1625513196991,0.24057544,34146.0,34145.0,0.48115088]
[1625513197089,0.24057544,34146.0,34145.0,0.68936088]
[1625513197187,0.24057544,34146.0,34145.0,0.80736088]
[1625513197289,0.24057544,34150.0,34145.0,0.80736088]
[1625513197899,0.24057544,34150.0,34145.0,0.74836088]
[1625513197993,0.24057544,34150.0,34145.0,0.80736088]
[1625513198091,4.5808,34149.0,34145.0,0.59915088]
[1625513198793,4.5808,34149.0,34145.0,0.54015088]
[1625513198892,4.5808,34149.0,34145.0,0.48115088]
[1625513199094,4.5808,34149.0,34147.0,0.24057544]
[1625513199594,4.6398,34149.0,34147.0,0.24057544]
[1625513199849,4.6988,34149.0,34147.0,0.24057544]
[1625513200498,4.6398,34149.0,34147.0,0.24057544]
[1625513200599,4.6988,34149.0,34147.0,0.24057544]
[1625513201056,1.26936487,34148.0,34147.0,0.24057544]
[1625513201248,1.38736487,34148.0,34147.0,0.24057544]
[1625513201448,1.32836487,34148.0,34147.0,0.24057544]
[1625513201651,0.29957544,34148.0,34147.0,0.24057544]
[1625513201951,0.24057544,34148.0,34147.0,0.24057544]
[1625513202405,0.29957544,34148.0,34147.0,0.24057544]
[1625513202503,0.24057544,34148.0,34147.0,0.29957544]
[1625513203052,1.02767652,34151.0,34147.0,0.54015088]
[1625513203154,1.02767652,34151.0,34147.0,0.90299088]
[1625513203255,0.34264503,34153.0,34147.0,0.90299088]
[1625513203453,0.34264503,34153.0,34147.0,1.40299088]
[1625513203854,0.24057544,34161.0,34147.0,1.40299088]
[1625513203955,0.24057544,34161.0,34148.0,0.057]
[1625513204156,0.24057544,34161.0,34148.0,0.175]
[1625513204257,0.24057544,34161.0,34155.0,3.5947]
[1625513204357,0.24057544,34161.0,34155.0,3.99714]
[1625513204554,1.2678334,34164.0,34155.0,3.99714]
[1625513204555,1.02725796,34164.0,34155.0,3.99714]
[1625513204658,1.02709385,34165.0,34155.0,4.05414]
[1625513205055,1.60997686,34168.0,34155.0,4.05414]
[1625513205056,0.24057544,34168.0,34164.0,0.72172632]
[1625513205156,0.24057544,34168.0,34164.0,1.02864632]
[1625513205265,1.02519563,34170.0,34164.0,1.08764632]
[1625513205459,1.02505717,34171.0,34164.0,1.08764632]
[1625513205556,1.02505717,34171.0,34164.0,1.14664632]
[1625513205857,0.2929,34174.0,34164.0,1.08764632]
[1625513205957,0.2929,34174.0,34164.0,1.14464632]
[1625513206058,0.3519,34174.0,34164.0,1.14464632]
[1625513206563,0.059,34174.0,34164.0,1.14464632]
[1625513207065,0.059,34174.0,34173.0,0.24057544]
[1625513207165,0.059,34174.0,34173.0,0.49565544]
[1625513207362,0.059,34174.0,34173.0,0.55465544]
[1625513207663,0.059,34174.0,34173.0,5.27025544]
[1625513208164,0.24057544,34176.0,34173.0,5.27025544]
[1625513209066,0.24057544,34176.0,34174.0,0.24057544]
[1625513209165,0.24057544,34179.0,34174.0,0.24057544]
[1625513209276,0.24057544,34179.0,34174.0,0.35857544]
[1625513209479,0.2929,34182.0,34174.0,0.35857544]
[1625513209568,0.2929,34182.0,34179.0,0.059]
[1625513209868,0.2929,34182.0,34179.0,0.118]
[1625513210069,0.17645651,34296.0,34179.0,0.118]
[1625513210070,1.0207529,34194.0,34179.0,0.118]
[1625513210170,1.0207529,34194.0,34179.0,0.059]
[1625513210269,1.0797529,34194.0,34179.0,0.059]
[1625513210369,1.0797529,34194.0,34179.0,0.118]
[1625513210672,0.059,34194.0,34179.0,0.118]
[1625513211072,0.24057544,34193.0,34192.0,0.24057544]
[1625513211173,0.29957544,34193.0,34192.0,0.56926544]
[1625513211473,0.29957544,34193.0,34192.0,0.62826544]
[1625513211574,0.29957544,34193.0,34192.0,0.56926544]
[1625513212827,0.29957544,34193.0,34192.0,0.62826544]
[1625513213028,0.29957544,34193.0,34192.0,0.56926544]
[1625513213330,0.29957544,34193.0,34192.0,0.24057544]
[1625513213680,0.24057544,34193.0,34192.0,0.24057544]
[1625513213783,0.29957544,34193.0,34192.0,0.24057544]
[1625513213882,0.35857544,34193.0,34192.0,0.24057544]
[1625513214085,0.29957544,34193.0,34192.0,0.24057544]
[1625513214887,0.24057544,34193.0,34192.0,0.24057544]
[1625513215137,0.29957544,34193.0,34192.0,0.24057544]
[1625513215648,0.53347544,34196.0,34192.0,0.61706544]
[1625513215837,0.59247544,34196.0,34192.0,0.61706544]
[1625513216140,0.53347544,34196.0,34192.0,0.61706544]
[1625513216238,0.59247544,34196.0,34192.0,0.61706544]
[1625513217000,0.59247544,34196.0,34192.0,0.55806544]
[1625513217156,0.65147544,34196.0,34189.0,0.24057544]
[1625513217192,0.24057544,34193.0,34189.0,0.24057544]
[1625513217290,0.29957544,34193.0,34189.0,0.24057544]
[1625513217391,0.35857544,34193.0,34189.0,0.24057544]
[1625513217514,0.0887,34192.0,34189.0,0.24057544]
[1625513217597,0.35857544,34193.0,34189.0,0.24057544]
[1625513217740,0.118,34192.0,34189.0,0.24057544]
[1625513219191,0.24057544,34190.0,34189.0,0.24057544]
[1625513219292,0.29957544,34190.0,34189.0,0.24057544]
[1625513219391,0.38797544,34190.0,34189.0,0.24057544]
[1625513219596,0.29957544,34190.0,34189.0,0.24057544]
[1625513222208,0.29957544,34190.0,34185.0,0.24057544]
[1625513222304,0.49957544,34190.0,34177.0,0.24057544]
[1625513222405,0.49957544,34190.0,34177.0,0.29957544]
[1625513222504,0.55857544,34190.0,34174.0,0.24057544]
[1625513222604,0.2,34188.0,34175.0,0.059]
[1625513222707,0.2,34188.0,34174.0,0.24057544]
[1625513222806,0.2,34188.0,34174.0,0.29957544]
[1625513222807,0.57324,34188.0,34174.0,0.29957544]
[1625513222906,0.51424,34188.0,34174.0,0.24057544]
[1625513223006,0.57324,34188.0,34174.0,0.29957544]
[1625513223107,0.51424,34188.0,34174.0,0.35857544]
[1625513223206,0.24057544,34182.0,34181.0,0.24057544]
[1625513223405,0.24057544,34182.0,34181.0,0.29957544]
[1625513223507,0.24057544,34182.0,34174.0,0.48115088]
[1625513223607,0.29957544,34182.0,34174.0,0.48115088]
[1625513223707,0.35857544,34182.0,34174.0,0.54015088]
[1625513224057,4.7638,34175.0,34174.0,0.54015088]
[1625513224158,5.01262,34175.0,34174.0,0.54015088]
[1625513224356,5.01262,34175.0,34174.0,0.59915088]
[1625513224557,5.01262,34175.0,34174.0,0.60261968]
[1625513225457,5.01262,34175.0,34174.0,0.54361968]
[1625513226058,5.01262,34175.0,34174.0,0.60261968]
[1625513226560,5.01362,34175.0,34174.0,0.60261968]
[1625513226662,0.24982,34175.0,34174.0,0.60261968]
[1625513226762,0.001,34175.0,34174.0,0.60261968]
[1625513229167,0.2929,34187.0,34174.0,0.89905968]
[1625513229278,0.2929,34187.0,34175.0,0.057]
[1625513229466,0.2929,34187.0,34175.0,0.175]
[1625513229567,0.2929,34187.0,34176.0,0.0034684]
[1625513229705,0.2929,34187.0,34176.0,0.0624684]
[1625513229765,0.2929,34187.0,34176.0,0.1214684]
[1625513229883,0.2929,34187.0,34177.0,0.057]
[1625513230088,0.2929,34187.0,34177.0,0.116]
[1625513230179,0.9603,34194.0,34177.0,0.12813861]
[1625513230377,1.0193,34194.0,34178.0,0.01213848]
[1625513230568,1.0783,34194.0,34178.0,0.01213848]
[1625513230886,1.0193,34194.0,34178.0,0.01213848]
[1625513230972,0.9603,34194.0,34178.0,0.01213848]
[1625513231222,0.9603,34194.0,34193.0,0.72172632]
[1625513231320,0.9603,34194.0,34193.0,1.05208632]
[1625513231523,0.24057544,34198.0,34193.0,1.11108632]
[1625513231621,0.24057544,34198.0,34193.0,1.17008632]
[1625513231723,0.24057544,34198.0,34193.0,1.11455356]
[1625513231974,0.24057544,34198.0,34194.0,0.00346717]
[1625513232171,0.24057544,34198.0,34194.0,0.06246717]
[1625513232521,0.24057544,34198.0,34194.0,0.00346717]
[1625513232622,0.24057544,34198.0,34195.0,0.00346706]
[1625513232721,0.24057544,34198.0,34195.0,0.06246706]
[1625513232821,0.24057544,34198.0,34195.0,0.059]
[1625513233022,0.24057544,34198.0,34195.0,0.118]
[1625513233123,0.24057544,34198.0,34196.0,0.00346689]
[1625513233223,0.24057544,34198.0,34197.0,0.24057544]
[1625513233323,0.24057544,34201.0,34197.0,0.24057544]
[1625513233424,39.523,34213.0,34197.0,0.29957544]
[1625513233523,39.523,34213.0,34197.0,0.35857544]
[1625513233624,39.523,34213.0,34197.0,0.37070778]
[1625513233724,39.523,34213.0,34200.0,5.1296]
[1625513233725,39.582,34213.0,34200.0,5.1296]
[1625513233925,39.523,34213.0,34200.0,5.1886]
[1625513234125,39.523,34213.0,34201.0,0.012131]
[1625513234325,39.523,34213.0,34201.0,0.277431]
[1625513234426,39.523,34213.0,34202.0,0.5]
[1625513234656,39.523,34213.0,34202.0,0.559]
[1625513234735,39.523,34213.0,34203.0,0.89992915]
[1625513234842,39.523,34213.0,34204.0,0.5]
[1625513234939,39.488,34213.0,34204.0,0.50346473]
[1625513235026,39.3312,34213.0,34204.0,0.52945022]
[1625513235129,39.2582,34213.0,34204.0,0.52945022]
[1625513235229,39.2582,34213.0,34205.0,0.0121239]
[1625513235333,39.232,34213.0,34212.0,0.96230176]
[1625513235427,39.232,34213.0,34212.0,1.69851176]
[1625513235626,39.232,34213.0,34212.0,1.75751176]
[1625513235726,39.226,34213.0,34212.0,1.75751176]
[1625513235827,39.226,34213.0,34212.0,1.7696346]
[1625513235928,37.82398,34213.0,34212.0,1.7696346]
[1625513236030,37.05718,34213.0,34212.0,1.7696346]
[1625513236229,37.05718,34213.0,34212.0,1.8011346]
[1625513236330,36.96248,34213.0,34212.0,1.8011346]
[1625513236930,36.92298,34213.0,34212.0,1.8011346]
[1625513237179,36.92298,34213.0,34212.0,1.81845233]
[1625513237381,36.92298,34213.0,34212.0,1.8011346]
[1625513238433,36.89038,34213.0,34212.0,1.8011346]
[1625513238533,36.88698,34213.0,34212.0,1.8011346]
[1625513238632,36.88698,34213.0,34212.0,1.2106346]
[1625513238733,36.88698,34213.0,34212.0,1.0334246]
[1625513238832,36.88698,34213.0,34212.0,1.4744246]
[1625513238932,36.88698,34213.0,34212.0,0.9744246]
[1625513239034,36.88698,34213.0,34212.0,1.0334246]
[1625513239285,36.88698,34213.0,34212.0,1.02996093]
[1625513239486,36.88698,34213.0,34212.0,0.96576572]
[1625513239787,36.88698,34213.0,34212.0,1.73300572]
[1625513239886,36.88698,34213.0,34212.0,1.23300572]
[1625513239990,36.88698,34213.0,34212.0,1.29200572]
[1625513240088,36.88698,34213.0,34212.0,1.23300572]
[1625513240387,36.94598,34213.0,34212.0,1.23300572]
[1625513240486,36.88698,34213.0,34212.0,1.23300572]
[1625513240936,36.88698,34213.0,34212.0,0.96576572]
[1625513241136,36.82798,34213.0,34212.0,1.02476572]
[1625513241238,36.82798,34213.0,34212.0,1.08376572]
[1625513241338,37.08342,34213.0,34212.0,1.02476572]
[1625513241438,37.14242,34213.0,34212.0,0.96576572]
[1625513241537,37.08342,34213.0,34212.0,0.96576572]
[1625513241688,37.08342,34213.0,34212.0,1.02476572]
[1625513241790,37.14242,34213.0,34212.0,1.02476572]
[1625513241990,37.14242,34213.0,34212.0,0.96576572]
[1625513242290,37.14242,34213.0,34212.0,1.02476572]
[1625513242389,36.82798,34213.0,34212.0,1.02476572]
[1625513243759,36.82798,34213.0,34212.0,1.08376572]
[1625513243864,36.76898,34213.0,34212.0,1.02476572]
[1625513244192,36.76898,34213.0,34212.0,1.08376572]
[1625513244291,36.76898,34213.0,34212.0,1.02476572]
[1625513244393,36.76898,34213.0,34212.0,1.08376572]
[1625513244494,36.76898,34213.0,34212.0,0.96576572]
[1625513244694,36.76898,34213.0,34212.0,1.52476572]
[1625513245193,36.76898,34213.0,34212.0,1.46576572]
[1625513245404,36.76898,34213.0,34212.0,1.52476572]
[1625513245500,36.76898,34213.0,34212.0,1.58376572]
[1625513247948,36.76898,34213.0,34212.0,1.52476572]
[1625513248047,36.70998,34213.0,34212.0,1.58376572]
[1625513248349,36.70998,34213.0,34212.0,0.96576572]
[1625513248449,37.04872,34213.0,34212.0,0.96576572]
[1625513249253,37.04872,34213.0,34212.0,1.02476572]
[1625513249451,37.04872,34213.0,34212.0,0.96576572]
[1625513250958,37.04872,34213.0,34212.0,1.02476572]
[1625513251059,36.70998,34213.0,34212.0,0.96576572]
[1625513251809,36.9447,34213.0,34212.0,0.96576572]
[1625513253310,37.0037,34213.0,34212.0,0.96576572]
[1625513253511,36.9447,34213.0,34212.0,0.96230176]
[1625513254561,36.9447,34213.0,34212.0,0.96576599]
[1625513254660,37.0037,34213.0,34201.0,0.057]
[1625513254809,37.0627,34213.0,34201.0,0.057]
[1625513254963,37.0627,34213.0,34198.0,0.16437305]
[1625513255062,37.0627,34213.0,34198.0,0.22137305]
[1625513255161,37.0627,34213.0,34202.0,0.00346472]
[1625513255362,37.30327544,34213.0,34212.0,0.24057544]
[1625513255964,37.30327544,34213.0,34205.0,0.24057544]
[1625513256466,37.30327544,34213.0,34206.0,0.00346482]
[1625513257378,0.24057544,34207.0,34206.0,0.00346482]
[1625513257468,0.29957544,34207.0,34206.0,0.00346482]
[1625513257574,0.35857544,34207.0,34206.0,0.00346482]
[1625513258689,0.35857544,34207.0,34206.0,0.09116482]
[1625513258780,0.35857544,34207.0,34203.0,0.00346514]
[1625513259033,0.35857544,34207.0,34206.0,0.0034651]
[1625513259523,0.29957544,34207.0,34204.0,0.00346499]
[1625513259626,0.35857544,34207.0,34204.0,0.00346499]
[1625513259956,0.35857544,34207.0,34191.0,0.24057544]
[1625513260147,0.35857544,34207.0,34189.0,0.16538278]
[1625513260226,0.35857544,34207.0,34196.0,0.00346555]
[1625513260437,0.35857544,34207.0,34190.0,0.06913019]
[1625513260675,0.35857544,34207.0,34197.0,0.00346583]
[1625513260974,0.35857544,34207.0,34191.0,0.00346597]
[1625513261296,0.057,34206.0,34183.0,0.16582399]
[1625513261428,0.96230176,34184.0,34183.0,0.16582399]
[1625513261513,1.25238176,34184.0,34183.0,0.16582399]
[1625513261577,1.31138176,34184.0,34183.0,0.16582399]
[1625513261714,1.37038176,34184.0,34183.0,0.16582399]
[1625513261791,1.12980632,34184.0,34183.0,0.16929084]
[1625513262283,1.12980632,34184.0,34183.0,0.00346685]
[1625513262828,1.12980632,34184.0,34176.0,0.08688837]
[1625513263030,1.12980632,34184.0,34176.0,0.003467]
[1625513263131,1.12980632,34184.0,34183.0,0.00346703]
[1625513263328,1.12980632,34184.0,34176.0,0.00346701]
[1625513263430,1.12980632,34184.0,34179.0,0.24057544]
[1625513263629,1.12980632,34184.0,34183.0,0.00346705]
[1625513263829,1.13080632,34184.0,34183.0,0.00346705]
[1625513263931,1.13080632,34184.0,34180.0,0.00346705]
[1625513265430,1.13080632,34184.0,34179.0,0.24057544]
[1625513265733,1.13080632,34184.0,34177.0,0.25044912]
[1625513266085,1.13080632,34184.0,34173.0,0.32418997]
[1625513266486,1.13080632,34184.0,34174.0,0.00346759]
[1625513266785,1.13080632,34184.0,34173.0,0.24057544]
[1625513267437,0.48115088,34174.0,34173.0,0.24057544]
[1625513267538,0.84868088,34174.0,34173.0,0.24057544]
[1625513267637,0.96668088,34174.0,34173.0,0.24057544]
[1625513272050,0.96668088,34174.0,34169.0,0.25082715]
[1625513272502,0.96668088,34174.0,34166.0,1.24395358]
[1625513272503,0.96668088,34174.0,34168.0,0.2509044]
[1625513272607,5.1791,34171.0,34168.0,0.2509044]
[1625513272703,0.057,34170.0,34168.0,0.2509044]
[1625513272800,0.175,34170.0,34168.0,0.2509044]
[1625513273004,0.175,34170.0,34166.0,0.4916233]
[1625513273507,0.175,34170.0,34166.0,0.32425806]
[1625513273600,0.81973088,34167.0,34166.0,0.32425806]
[1625513273700,0.99473088,34167.0,34166.0,0.32425806]
[1625513274106,0.99473088,34167.0,34166.0,0.24057544]
[1625513275106,0.99573088,34167.0,34166.0,0.24057544]
[1625513275208,0.99573088,34167.0,34165.0,0.25112502]
[1625513275412,0.99573088,34167.0,34163.0,0.25186769]
[1625513275654,0.24057544,34164.0,34163.0,0.25186769]
[1625513275755,0.35657544,34164.0,34163.0,0.25186769]
[1625513275857,0.41557544,34164.0,34163.0,0.25186769]
[1625513276217,0.41557544,34164.0,34161.0,0.16806033]
[1625513276655,0.41557544,34164.0,34160.0,0.74475644]
[1625513276656,0.41557544,34164.0,34160.0,0.40873143]
[1625513276956,0.41557544,34164.0,34160.0,0.24057544]
[1625513277658,0.24057544,34161.0,34160.0,0.24057544]
[1625513277758,0.41557544,34161.0,34160.0,0.24057544]
[1625513277858,0.41557544,34161.0,34160.0,0.40869133]
[1625513278313,0.41557544,34161.0,34160.0,0.24057544]
[1625513279212,0.41557544,34161.0,34158.0,0.16787052]
[1625513279313,0.41557544,34161.0,34158.0,7.052e-05]
[1625513279615,0.24057544,34159.0,34158.0,7.052e-05]
[1625513279713,0.57671544,34159.0,34158.0,7.052e-05]
[1625513279814,0.57671544,34159.0,34157.0,1.17475173]
[1625513279815,0.63571544,34159.0,34157.0,0.16811475]
[1625513280265,0.63571544,34159.0,34156.0,0.50434425]
[1625513280364,0.63571544,34159.0,34153.0,0.50452917]
[1625513280869,0.63571544,34159.0,34152.0,1.17725511]
[1625513281269,0.63571544,34159.0,34152.0,0.11965511]
[1625513281368,0.63571544,34159.0,34153.0,0.00346928]
[1625513281669,0.48115088,34154.0,34153.0,0.00346928]
[1625513281768,0.59715088,34154.0,34153.0,0.00346928]
[1625513281970,0.65615088,34154.0,34153.0,0.00346928]
[1625513282420,0.65615088,34154.0,34149.0,0.00346947]
[1625513282922,0.65615088,34154.0,34147.0,0.00346935]
[1625513283220,0.65615088,34154.0,34150.0,0.00346944]
[1625513283521,0.65615088,34154.0,34147.0,0.00346942]
[1625513283676,0.24057544,34148.0,34147.0,0.00346942]
[1625513283773,0.29757544,34148.0,34146.0,0.24057544]
[1625513283872,0.35657544,34148.0,34146.0,0.24057544]
[1625513283973,0.41557544,34148.0,34146.0,0.24057544]
[1625513284076,0.41557544,34148.0,34147.0,0.00346957]
[1625513285677,0.41557544,34148.0,34142.0,1.25106961]
[1625513285678,0.41557544,34148.0,34143.0,0.00346977]
[1625513285779,0.24057544,34144.0,34143.0,0.00346977]
[1625513285881,0.29757544,34144.0,34143.0,0.00346977]
[1625513285979,0.41557544,34144.0,34142.0,1.25106961]
[1625513286185,0.41557544,34144.0,34143.0,0.00346999]
[1625513287531,0.35657544,34144.0,34143.0,0.00346999]
[1625513287732,0.41557544,34144.0,34143.0,0.00346999]
[1625513288081,0.29957544,34144.0,34143.0,0.00346999]
[1625513288183,0.24057544,34144.0,34143.0,0.00346999]
[1625513288288,0.24057544,34144.0,34143.0,0.30363999]
[1625513288381,7.544e-05,34144.0,34143.0,0.30363999]
[1625513288507,0.057,34149.0,34143.0,0.30363999]
[1625513288592,0.057,34149.0,34143.0,0.80363999]
[1625513288689,0.24057544,34153.0,34143.0,3.107224]
[1625513288885,0.059,34153.0,34144.0,0.0034696]
[1625513289000,1.01959449,34183.0,34144.0,0.0034696]
[1625513289086,0.001,34184.0,34144.0,0.0034696]
[1625513289087,0.001,34184.0,34148.0,1.00730549]
[1625513289190,0.06,34167.0,34148.0,1.06630549]
[1625513289396,0.119,34167.0,34149.0,0.01214239]
[1625513289486,0.057,34166.0,34151.0,1.00605252]
[1625513289614,0.057,34166.0,34151.0,1.30260252]
[1625513289684,0.116,34166.0,34151.0,1.30260252]
[1625513289784,0.175,34166.0,34151.0,1.30260252]
[1625513289884,0.175,34166.0,34165.0,0.72172632]
[1625513290084,0.116,34166.0,34165.0,0.72172632]
[1625513290183,0.175,34166.0,34165.0,0.72172632]
[1625513290435,0.175,34166.0,34165.0,0.72519553]
[1625513290535,0.175,34166.0,34165.0,1.03241553]
[1625513291335,0.175,34166.0,34165.0,0.55126465]
[1625513291837,0.41557544,34166.0,34165.0,0.55126465]
[1625513293991,0.41557544,34166.0,34165.0,0.24404465]
[1625513294791,0.41557544,34166.0,34165.0,0.00346921]
[1625513295294,0.66016544,34166.0,34163.0,0.00346899]
[1625513295493,0.66016544,34166.0,34156.0,0.01214272]
[1625513295794,0.66016544,34166.0,34164.0,0.00346935]
[1625513295894,0.24057544,34165.0,34164.0,0.00346935]
[1625513296015,0.35657544,34165.0,34157.0,0.0034695]
[1625513296305,0.0555305,34159.0,34155.0,0.24057544]
[1625513296393,0.3791605,34159.0,34155.0,0.24057544]
[1625513296494,0.057,34158.0,34155.0,0.24057544]
[1625513296594,0.057,34158.0,34156.0,0.00346961]
[1625513296694,0.175,34158.0,34156.0,0.00346961]
[1625513297897,0.48115088,34157.0,34156.0,0.00346961]
[1625513297997,0.53815088,34157.0,34156.0,0.00346961]